[Event "*** Titled Tuesday Blitz"]
[Site "Chess.com"]
[Date "2021.03.09"]
[Round "8"]
[White "Piotrek1979"]
[Black "VladaSviridova"]
[Result "0-1"]
[WhiteElo "2342"]
[BlackElo "2229"]
[TimeControl "180+1"]
[EndTime "11:32:56 PST"]
[Termination "VladaSviridova won by checkmate"]

1. e4 {[%clk 0:03:00.9]} 1... e6 {[%clk 0:02:58.8]} 2. d4 {[%clk 0:02:51]} 2...
d5 {[%clk 0:02:58.7]} 3. Nd2 {[%clk 0:02:45]} 3... c5 {[%clk 0:02:58.4]} 4. exd5
{[%clk 0:02:40.4]} 4... Qxd5 {[%clk 0:02:56.7]} 5. Ngf3 {[%clk 0:02:40.1]} 5...
cxd4 {[%clk 0:02:56.7]} 6. Bc4 {[%clk 0:02:39.6]} 6... Qd7 {[%clk 0:02:56.7]} 7.
O-O {[%clk 0:02:38.4]} 7... Nc6 {[%clk 0:02:57]} 8. Nb3 {[%clk 0:02:37.3]} 8...
a6 {[%clk 0:02:57.3]} 9. Nbxd4 {[%clk 0:02:36.3]} 9... Nxd4 {[%clk 0:02:57.6]}
10. Qxd4 {[%clk 0:02:35.2]} 10... Qxd4 {[%clk 0:02:57.2]} 11. Nxd4 {[%clk
0:02:36.1]} 11... Bd7 {[%clk 0:02:56.9]} 12. a4 {[%clk 0:02:26.6]} 12... Nf6
{[%clk 0:02:53.8]} 13. Re1 {[%clk 0:02:16.8]} 13... Rc8 {[%clk 0:02:47.8]} 14.
Bb3 {[%clk 0:02:08.2]} 14... Bc5 {[%clk 0:02:45.3]} 15. Nf3 {[%clk 0:02:07.1]}
15... Ng4 {[%clk 0:02:08.4]} 16. Re2 {[%clk 0:02:02]} 16... Bc6 {[%clk 0:02:04]}
17. Ne5 {[%clk 0:01:50.1]} 17... Bxf2+ {[%clk 0:01:48]} 18. Rxf2 {[%clk
0:01:49.3]} 18... Nxe5 {[%clk 0:01:46.6]} 19. Bf4 {[%clk 0:01:47]} 19... Ng6
{[%clk 0:01:42.7]} 20. Bg3 {[%clk 0:01:35.1]} 20... O-O {[%clk 0:01:41.9]} 21.
c3 {[%clk 0:01:34.6]} 21... Rfd8 {[%clk 0:01:31.9]} 22. Bc2 {[%clk 0:01:34]}
22... Rd7 {[%clk 0:01:24.5]} 23. a5 {[%clk 0:01:31.4]} 23... Rcd8 {[%clk
0:01:23.5]} 24. Re1 {[%clk 0:01:26.6]} 24... Rd2 {[%clk 0:01:22.7]} 25. Ree2
{[%clk 0:01:26.5]} 25... Rxe2 {[%clk 0:01:19.4]} 26. Rxe2 {[%clk 0:01:27.4]}
26... Rd5 {[%clk 0:01:15.9]} 27. b4 {[%clk 0:01:25.4]} 27... Bb5 {[%clk
0:01:10]} 28. Rf2 {[%clk 0:01:24.1]} 28... f5 {[%clk 0:01:01.5]} 29. Bc7 {[%clk
0:01:21.3]} 29... Ne5 {[%clk 0:00:49.2]} 30. h3 {[%clk 0:01:13.4]} 30... Nc4
{[%clk 0:00:46.5]} 31. Bb3 {[%clk 0:01:04.5]} 31... Kf7 {[%clk 0:00:34.6]} 32.
Kh2 {[%clk 0:00:59.9]} 32... Rd3 {[%clk 0:00:29.4]} 33. Bxc4 {[%clk 0:00:56.4]}
33... Bxc4 {[%clk 0:00:29.6]} 34. Be5 {[%clk 0:00:56.6]} 34... Bd5 {[%clk
0:00:24]} 35. Re2 {[%clk 0:00:50.7]} 35... Rd1 {[%clk 0:00:21.5]} 36. Kg3 {[%clk
0:00:48.9]} 36... g5 {[%clk 0:00:21.6]} 37. h4 {[%clk 0:00:47.5]} 37... h6
{[%clk 0:00:21.3]} 38. hxg5 {[%clk 0:00:46.9]} 38... hxg5 {[%clk 0:00:22.2]} 39.
Kf2 {[%clk 0:00:46.4]} 39... Kg6 {[%clk 0:00:17.1]} 40. Ke3 {[%clk 0:00:45.4]}
40... f4+ {[%clk 0:00:16.1]} 41. Kf2 {[%clk 0:00:44.6]} 41... Kf5 {[%clk
0:00:16.5]} 42. Bd4 {[%clk 0:00:44.1]} 42... Bc4 {[%clk 0:00:15]} 43. Re5+
{[%clk 0:00:43.1]} 43... Kg4 {[%clk 0:00:14.1]} 44. Re1 {[%clk 0:00:30.1]} 44...
Rd2+ {[%clk 0:00:13.4]} 45. Kg1 {[%clk 0:00:29]} 45... Bd5 {[%clk 0:00:13.4]}
46. Bf2 {[%clk 0:00:27.4]} 46... Rc2 {[%clk 0:00:13.5]} 47. Rb1 {[%clk
0:00:16.7]} 47... Rxc3 {[%clk 0:00:12.6]} 48. b5 {[%clk 0:00:17.6]} 48... Ra3
{[%clk 0:00:08]} 49. bxa6 {[%clk 0:00:16.8]} 49... bxa6 {[%clk 0:00:08.1]} 50.
Rb8 {[%clk 0:00:17.1]} 50... Rxa5 {[%clk 0:00:07.2]} 51. Rg8 {[%clk 0:00:16.6]}
51... Ra1+ {[%clk 0:00:06.8]} 52. Kh2 {[%clk 0:00:16]} 52... Ra2 {[%clk
0:00:07.2]} 53. Kg1 {[%clk 0:00:15.7]} 53... a5 {[%clk 0:00:07.5]} 54. g3 {[%clk
0:00:08.9]} 54... Ra1+ {[%clk 0:00:06]} 55. Be1 {[%clk 0:00:04.9]} 55... Rxe1+
{[%clk 0:00:06.3]} 56. Kf2 {[%clk 0:00:05.8]} 56... Ra1 {[%clk 0:00:05.7]} 57.
gxf4 {[%clk 0:00:06.6]} 57... Kxf4 {[%clk 0:00:06.1]} 58. Rf8+ {[%clk
0:00:06.8]} 58... Kg4 {[%clk 0:00:06.6]} 59. Ke3 {[%clk 0:00:05.4]} 59... a4
{[%clk 0:00:06.8]} 60. Kd4 {[%clk 0:00:06.3]} 60... a3 {[%clk 0:00:07]} 61. Ke5
{[%clk 0:00:07.2]} 61... a2 {[%clk 0:00:07]} 62. Rb8 {[%clk 0:00:07.9]} 62...
Re1+ {[%clk 0:00:07]} 63. Kf6 {[%clk 0:00:06.1]} 63... a1=Q+ {[%clk 0:00:06.8]}
64. Kg6 {[%clk 0:00:04.3]} 64... Be4+ {[%clk 0:00:06.6]} 65. Kh6 {[%clk
0:00:03.1]} 65... Rh1# {[%clk 0:00:06.9]} 0-1

[Event "*** Titled Tuesday Blitz"]
[Site "Chess.com"]
[Date "2021.03.09"]
[Round "8"]
[White "LamaChampetre"]
[Black "SergeyShtyka"]
[Result "0-1"]
[WhiteElo "2229"]
[BlackElo "2431"]
[TimeControl "180+1"]
[EndTime "11:33:00 PST"]
[Termination "SergeyShtyka won by checkmate"]

1. d4 {[%clk 0:03:00.9]} 1... c5 {[%clk 0:02:59]} 2. d5 {[%clk 0:03:00.3]} 2...
e5 {[%clk 0:02:58.5]} 3. Nc3 {[%clk 0:02:59]} 3... d6 {[%clk 0:02:53]} 4. e4
{[%clk 0:02:58.1]} 4... Be7 {[%clk 0:02:51.8]} 5. Bb5+ {[%clk 0:02:58]} 5... Bd7
{[%clk 0:02:51.4]} 6. a4 {[%clk 0:02:58.5]} 6... Bg5 {[%clk 0:02:49.8]} 7. Qg4
{[%clk 0:02:30.5]} 7... Bxc1 {[%clk 0:02:41.1]} 8. Rxc1 {[%clk 0:02:09.8]} 8...
g6 {[%clk 0:02:36.2]} 9. Bxd7+ {[%clk 0:01:50.2]} 9... Qxd7 {[%clk 0:02:32.6]}
10. Qh4 {[%clk 0:01:36.5]} 10... Qe7 {[%clk 0:02:30.3]} 11. Qh3 {[%clk
0:01:28.5]} 11... Qd7 {[%clk 0:02:27.2]} 12. Qh4 {[%clk 0:01:27.3]} 12... a6
{[%clk 0:02:25.3]} 13. Nf3 {[%clk 0:01:24.5]} 13... b5 {[%clk 0:02:20.6]} 14.
O-O {[%clk 0:01:16]} 14... b4 {[%clk 0:02:16.7]} 15. Ne2 {[%clk 0:01:15.2]}
15... Qxa4 {[%clk 0:02:13.7]} 16. b3 {[%clk 0:01:12.2]} 16... Qd7 {[%clk
0:02:06.4]} 17. Nd2 {[%clk 0:01:06.7]} 17... Qe7 {[%clk 0:02:00.7]} 18. Qh3
{[%clk 0:01:01]} 18... Nd7 {[%clk 0:02:00.5]} 19. Nc4 {[%clk 0:00:57.7]} 19...
Ngf6 {[%clk 0:01:57.5]} 20. Qh6 {[%clk 0:00:39.5]} 20... Nxe4 {[%clk 0:01:35.7]}
21. f4 {[%clk 0:00:31.1]} 21... f5 {[%clk 0:01:20.9]} 22. Qh3 {[%clk 0:00:16.3]}
22... O-O {[%clk 0:01:16.4]} 23. Ng3 {[%clk 0:00:14.4]} 23... Nxg3 {[%clk
0:01:14.4]} 24. Qxg3 {[%clk 0:00:14.5]} 24... e4 {[%clk 0:01:12.6]} 25. Rcd1
{[%clk 0:00:13]} 25... Nf6 {[%clk 0:01:01]} 26. Rfe1 {[%clk 0:00:11.8]} 26...
Rfd8 {[%clk 0:00:56.9]} 27. h3 {[%clk 0:00:11.1]} 27... Qf7 {[%clk 0:00:50.9]}
28. Nb6 {[%clk 0:00:04.8]} 28... Rab8 {[%clk 0:00:49.3]} 29. Nc4 {[%clk
0:00:04.6]} 29... Nxd5 {[%clk 0:00:47.3]} 30. h4 {[%clk 0:00:03.7]} 30... Qe6
{[%clk 0:00:33.5]} 31. h5 {[%clk 0:00:03.6]} 31... Nc3 {[%clk 0:00:33.3]} 32.
hxg6 {[%clk 0:00:03.1]} 32... Qxg6 {[%clk 0:00:28.4]} 33. Qxg6+ {[%clk 0:00:02]}
33... hxg6 {[%clk 0:00:29.3]} 34. Rxd6 {[%clk 0:00:01.6]} 34... Rxd6 {[%clk
0:00:29.3]} 35. Nxd6 {[%clk 0:00:02]} 35... a5 {[%clk 0:00:27.5]} 36. Nc4 {[%clk
0:00:02.9]} 36... a4 {[%clk 0:00:26.8]} 37. Re3 {[%clk 0:00:03.8]} 37... a3
{[%clk 0:00:25]} 38. Re1 {[%clk 0:00:03.4]} 38... Rd8 {[%clk 0:00:23.4]} 39. Ne5
{[%clk 0:00:01.8]} 39... Rd1 {[%clk 0:00:20.3]} 40. Rxd1 {[%clk 0:00:01.8]}
40... Nxd1 {[%clk 0:00:21.2]} 41. Nxg6 {[%clk 0:00:02.6]} 41... a2 {[%clk
0:00:16.5]} 42. Ne7+ {[%clk 0:00:03.5]} 42... Kf7 {[%clk 0:00:16.5]} 43. Nxf5
{[%clk 0:00:04]} 43... a1=Q {[%clk 0:00:16.4]} 44. Nd6+ {[%clk 0:00:04.9]} 44...
Kf8 {[%clk 0:00:15.9]} 45. Nxe4 {[%clk 0:00:05.8]} 45... Nc3+ {[%clk 0:00:16]}
46. Kf2 {[%clk 0:00:05.4]} 46... Nxe4+ {[%clk 0:00:16.1]} 47. Kf3 {[%clk
0:00:06.1]} 47... Nf6 {[%clk 0:00:16.5]} 48. f5 {[%clk 0:00:05.6]} 48... Qd4
{[%clk 0:00:16]} 49. g4 {[%clk 0:00:05.1]} 49... Qxg4+ {[%clk 0:00:15.5]} 50.
Kf2 {[%clk 0:00:04.8]} 50... Qxf5+ {[%clk 0:00:14.4]} 51. Ke2 {[%clk 0:00:04.7]}
51... Qxc2+ {[%clk 0:00:14.2]} 52. Kf3 {[%clk 0:00:04]} 52... Qxb3+ {[%clk
0:00:14.4]} 53. Kf4 {[%clk 0:00:04.9]} 53... Qd5 {[%clk 0:00:13.5]} 54. Kg3
{[%clk 0:00:04]} 54... Qe4 {[%clk 0:00:13.4]} 55. Kf2 {[%clk 0:00:04.8]} 55...
Qd3 {[%clk 0:00:13.3]} 56. Kg2 {[%clk 0:00:04.5]} 56... Qe3 {[%clk 0:00:13.4]}
57. Kh2 {[%clk 0:00:03.5]} 57... Qf3 {[%clk 0:00:12.4]} 58. Kg1 {[%clk
0:00:02.4]} 58... Qe2 {[%clk 0:00:12]} 59. Kh1 {[%clk 0:00:02.2]} 59... Ng4
{[%clk 0:00:12.3]} 60. Kg1 {[%clk 0:00:02.8]} 60... Qf2+ {[%clk 0:00:12.4]} 61.
Kh1 {[%clk 0:00:03.1]} 61... Qh2# {[%clk 0:00:12.4]} 0-1

[Event "*** Titled Tuesday Blitz"]
[Site "Chess.com"]
[Date "2021.03.09"]
[Round "8"]
[White "SHIVACalypso"]
[Black "HanSchut"]
[Result "1-0"]
[WhiteElo "2365"]
[BlackElo "2217"]
[TimeControl "180+1"]
[EndTime "11:33:03 PST"]
[Termination "SHIVACalypso won by checkmate"]

1. Nf3 {[%clk 0:03:00.9]} 1... Nf6 {[%clk 0:02:59.6]} 2. c4 {[%clk 0:02:55]}
2... g6 {[%clk 0:02:58.5]} 3. g3 {[%clk 0:02:52]} 3... Bg7 {[%clk 0:02:57.4]} 4.
Bg2 {[%clk 0:02:50.7]} 4... O-O {[%clk 0:02:57.3]} 5. O-O {[%clk 0:02:51.1]}
5... d5 {[%clk 0:02:58]} 6. d4 {[%clk 0:02:50]} 6... dxc4 {[%clk 0:02:57.9]} 7.
Na3 {[%clk 0:02:48.4]} 7... c5 {[%clk 0:02:51.2]} 8. dxc5 {[%clk 0:02:42.5]}
8... c3 {[%clk 0:02:34.6]} 9. bxc3 {[%clk 0:02:37.2]} 9... Ne4 {[%clk
0:02:04.2]} 10. Bb2 {[%clk 0:02:36.3]} 10... Bxc3 {[%clk 0:01:38]} 11. Bxc3
{[%clk 0:02:31.9]} 11... Nxc3 {[%clk 0:01:36.9]} 12. Qc2 {[%clk 0:02:30.9]}
12... Qa5 {[%clk 0:01:11.8]} 13. Nc4 {[%clk 0:02:28.6]} 13... Qb4 {[%clk
0:01:11.9]} 14. Nfe5 {[%clk 0:02:23]} 14... Nb5 {[%clk 0:00:37.8]} 15. Nd3
{[%clk 0:02:05]} 15... Qc3 {[%clk 0:00:35.6]} 16. Qb3 {[%clk 0:01:39.8]} 16...
Nd4 {[%clk 0:00:25.4]} 17. Qxc3 {[%clk 0:01:21.1]} 17... Nxe2+ {[%clk
0:00:25.2]} 18. Kh1 {[%clk 0:01:22]} 18... Nxc3 {[%clk 0:00:26]} 19. Rfc1 {[%clk
0:01:18.9]} 19... Ne2 {[%clk 0:00:20.9]} 20. Re1 {[%clk 0:01:16.4]} 20... Nd4
{[%clk 0:00:21.5]} 21. Rxe7 {[%clk 0:01:15.5]} 21... Nbc6 {[%clk 0:00:21.6]} 22.
Re4 {[%clk 0:00:54.6]} 22... Bf5 {[%clk 0:00:19.3]} 23. Rb1 {[%clk 0:00:47.8]}
23... Bxe4 {[%clk 0:00:18.9]} 24. Bxe4 {[%clk 0:00:48.7]} 24... Rae8 {[%clk
0:00:17.3]} 25. Nd6 {[%clk 0:00:48.2]} 25... Re7 {[%clk 0:00:14.3]} 26. Nf4
{[%clk 0:00:45.3]} 26... f5 {[%clk 0:00:12.7]} 27. Bd5+ {[%clk 0:00:43]} 27...
Kg7 {[%clk 0:00:10.7]} 28. Rd1 {[%clk 0:00:22.8]} 28... Ne2 {[%clk 0:00:10.8]}
29. Bxc6 {[%clk 0:00:18]} 29... Nxf4 {[%clk 0:00:06.8]} 30. Bxb7 {[%clk
0:00:18.1]} 30... Nd3 {[%clk 0:00:06]} 31. Rxd3 {[%clk 0:00:17.1]} 31... Re1+
{[%clk 0:00:05.8]} 32. Kg2 {[%clk 0:00:17.3]} 32... a5 {[%clk 0:00:06.7]} 33. c6
{[%clk 0:00:17.4]} 33... Re7 {[%clk 0:00:05]} 34. Nb5 {[%clk 0:00:16.3]} 34...
Rff7 {[%clk 0:00:04.4]} 35. c7 {[%clk 0:00:13.6]} 35... Rxc7 {[%clk 0:00:04.5]}
36. Nxc7 {[%clk 0:00:14.5]} 36... Rxc7 {[%clk 0:00:05]} 37. Bd5 {[%clk
0:00:14.7]} 37... Kf6 {[%clk 0:00:04.9]} 38. Bb3 {[%clk 0:00:14.7]} 38... Ra7
{[%clk 0:00:04.1]} 39. a4 {[%clk 0:00:12.9]} 39... Ke5 {[%clk 0:00:04.3]} 40.
Bc4 {[%clk 0:00:12.6]} 40... Rc7 {[%clk 0:00:03.1]} 41. Bb5 {[%clk 0:00:12.3]}
41... Ke4 {[%clk 0:00:03.7]} 42. Rd6 {[%clk 0:00:12.3]} 42... Rc2 {[%clk
0:00:02.2]} 43. Ra6 {[%clk 0:00:11.6]} 43... f4 {[%clk 0:00:03.1]} 44. gxf4
{[%clk 0:00:11.5]} 44... Kxf4 {[%clk 0:00:03.5]} 45. Rxa5 {[%clk 0:00:11.5]}
45... h5 {[%clk 0:00:04]} 46. Ra6 {[%clk 0:00:11]} 46... g5 {[%clk 0:00:04.2]}
47. Rf6+ {[%clk 0:00:10.4]} 47... Ke5 {[%clk 0:00:04.1]} 48. Rh6 {[%clk
0:00:10.9]} 48... h4 {[%clk 0:00:04.1]} 49. Kf3 {[%clk 0:00:10]} 49... Rc3+
{[%clk 0:00:03.7]} 50. Kg4 {[%clk 0:00:09.9]} 50... Rc2 {[%clk 0:00:03.8]} 51.
Kxg5 {[%clk 0:00:09.4]} 51... Rxf2 {[%clk 0:00:04.1]} 52. Rxh4 {[%clk 0:00:09]}
52... Rg2+ {[%clk 0:00:04.5]} 53. Kh6 {[%clk 0:00:08.4]} 53... Kf6 {[%clk
0:00:05]} 54. Rf4+ {[%clk 0:00:08.2]} 54... Ke5 {[%clk 0:00:05.1]} 55. Rh4
{[%clk 0:00:06.9]} 55... Kf6 {[%clk 0:00:05.4]} 56. h3 {[%clk 0:00:06]} 56...
Rg8 {[%clk 0:00:04.5]} 57. Rf4+ {[%clk 0:00:05.2]} 57... Ke5 {[%clk 0:00:04]}
58. Rf3 {[%clk 0:00:05.6]} 58... Ke4 {[%clk 0:00:03.3]} 59. Ra3 {[%clk
0:00:05.1]} 59... Kd4 {[%clk 0:00:02.7]} 60. a5 {[%clk 0:00:05]} 60... Kc5
{[%clk 0:00:03.6]} 61. Be2 {[%clk 0:00:04.5]} 61... Kb4 {[%clk 0:00:04]} 62. Ra1
{[%clk 0:00:04.1]} 62... Rh8+ {[%clk 0:00:04.1]} 63. Kg5 {[%clk 0:00:03.9]}
63... Rxh3 {[%clk 0:00:05]} 64. a6 {[%clk 0:00:04]} 64... Rg3+ {[%clk
0:00:03.1]} 65. Kf4 {[%clk 0:00:03.8]} 65... Rg2 {[%clk 0:00:03.1]} 66. a7
{[%clk 0:00:03.8]} 66... Rxe2 {[%clk 0:00:03.5]} 67. a8=Q {[%clk 0:00:04.2]}
67... Rb2 {[%clk 0:00:03.8]} 68. Qa3+ {[%clk 0:00:03.8]} 68... Kc4 {[%clk
0:00:03]} 69. Qxb2 {[%clk 0:00:04.4]} 69... Kc5 {[%clk 0:00:03.7]} 70. Rc1+
{[%clk 0:00:04.4]} 70... Kd6 {[%clk 0:00:04.6]} 71. Qe5+ {[%clk 0:00:03.9]}
71... Kd7 {[%clk 0:00:04.4]} 72. Rc7+ {[%clk 0:00:03.9]} 72... Kd8 {[%clk
0:00:04.4]} 73. Qe7# {[%clk 0:00:04.8]} 1-0

[Event "*** Titled Tuesday Blitz"]
[Site "Chess.com"]
[Date "2021.03.09"]
[Round "8"]
[White "eCztery"]
[Black "MoonlighT89"]
[Result "1/2-1/2"]
[WhiteElo "2453"]
[BlackElo "2590"]
[TimeControl "180+1"]
[EndTime "11:33:06 PST"]
[Termination "Game drawn by repetition"]

1. e4 {[%clk 0:03:00.9]} 1... c5 {[%clk 0:02:59.2]} 2. Nf3 {[%clk 0:03:00.3]}
2... e6 {[%clk 0:02:59.6]} 3. d4 {[%clk 0:03:00]} 3... cxd4 {[%clk 0:03:00.5]}
4. Nxd4 {[%clk 0:03:00.9]} 4... Nc6 {[%clk 0:03:00.5]} 5. Nc3 {[%clk 0:03:00.7]}
5... Qc7 {[%clk 0:03:00.8]} 6. Nb3 {[%clk 0:02:56.9]} 6... Nf6 {[%clk
0:02:58.1]} 7. Bd3 {[%clk 0:02:55.6]} 7... Be7 {[%clk 0:02:57.9]} 8. O-O {[%clk
0:02:48.8]} 8... O-O {[%clk 0:02:57.7]} 9. f4 {[%clk 0:02:47.3]} 9... d6 {[%clk
0:02:57.2]} 10. Qf3 {[%clk 0:02:46.4]} 10... Nb4 {[%clk 0:02:55.6]} 11. Be3
{[%clk 0:02:42.8]} 11... Bd7 {[%clk 0:02:50.4]} 12. Rac1 {[%clk 0:02:32.3]}
12... Bc6 {[%clk 0:02:40.3]} 13. Kh1 {[%clk 0:02:21.2]} 13... d5 {[%clk
0:02:37.1]} 14. Bd4 {[%clk 0:02:05.8]} 14... dxe4 {[%clk 0:02:29.9]} 15. Nxe4
{[%clk 0:02:03.1]} 15... Nxd3 {[%clk 0:02:18.5]} 16. cxd3 {[%clk 0:02:04]} 16...
Qd7 {[%clk 0:02:10.2]} 17. Bxf6 {[%clk 0:01:58.3]} 17... gxf6 {[%clk 0:02:04.6]}
18. f5 {[%clk 0:01:51.9]} 18... exf5 {[%clk 0:02:03.1]} 19. Nbc5 {[%clk
0:01:29.9]} 19... Qd5 {[%clk 0:01:37]} 20. Qxf5 {[%clk 0:01:26.4]} 20... Qxf5
{[%clk 0:01:24]} 21. Rxf5 {[%clk 0:01:27.3]} 21... Kg7 {[%clk 0:01:23.4]} 22.
Rcf1 {[%clk 0:01:24.5]} 22... b6 {[%clk 0:01:21.7]} 23. Nb3 {[%clk 0:01:22.1]}
23... Rad8 {[%clk 0:01:18.3]} 24. Nxf6 {[%clk 0:01:18]} 24... Rxd3 {[%clk
0:01:17.1]} 25. Nh5+ {[%clk 0:01:15.4]} 25... Kg8 {[%clk 0:01:10.4]} 26. Nf4
{[%clk 0:01:11.7]} 26... Rd6 {[%clk 0:00:57.4]} 27. h3 {[%clk 0:01:06.1]} 27...
Rfd8 {[%clk 0:00:54.5]} 28. Kh2 {[%clk 0:01:04.1]} 28... Rd1 {[%clk 0:00:51.2]}
29. Ne2 {[%clk 0:00:57.1]} 29... Rxf1 {[%clk 0:00:44.9]} 30. Rxf1 {[%clk
0:00:58]} 30... Bd6+ {[%clk 0:00:40.1]} 31. Kg1 {[%clk 0:00:58.4]} 31... Bb5
{[%clk 0:00:38.5]} 32. Re1 {[%clk 0:00:52]} 32... Re8 {[%clk 0:00:37.1]} 33. Kf2
{[%clk 0:00:52.2]} 33... Re4 {[%clk 0:00:31.7]} 34. Ned4 {[%clk 0:00:51.5]}
34... Rxe1 {[%clk 0:00:26.1]} 35. Kxe1 {[%clk 0:00:52.4]} 35... Bc4 {[%clk
0:00:25.3]} 36. Nf5 {[%clk 0:00:47.3]} 36... Be5 {[%clk 0:00:23.6]} 37. Ne7+
{[%clk 0:00:40.4]} 37... Kg7 {[%clk 0:00:21.6]} 38. Nc6 {[%clk 0:00:41.3]} 38...
Bxb2 {[%clk 0:00:18.2]} 39. Nxa7 {[%clk 0:00:40.5]} 39... Be5 {[%clk 0:00:15.2]}
40. Nc6 {[%clk 0:00:39.1]} 40... Bg3+ {[%clk 0:00:15.2]} 41. Kd2 {[%clk
0:00:38.1]} 41... Bd5 {[%clk 0:00:16.1]} 42. Ncd4 {[%clk 0:00:36.6]} 42... Be4
{[%clk 0:00:14.8]} 43. Ke3 {[%clk 0:00:36.3]} 43... Bg6 {[%clk 0:00:10.6]} 44.
Nd2 {[%clk 0:00:34.6]} 44... Bd6 {[%clk 0:00:07.5]} 45. Ne4 {[%clk 0:00:34.3]}
45... Be5 {[%clk 0:00:07.8]} 46. g4 {[%clk 0:00:31.4]} 46... h5 {[%clk
0:00:07.6]} 47. Nf5+ {[%clk 0:00:29.6]} 47... Kf8 {[%clk 0:00:06.3]} 48. Neg3
{[%clk 0:00:23.7]} 48... hxg4 {[%clk 0:00:06.4]} 49. hxg4 {[%clk 0:00:24.6]}
49... f6 {[%clk 0:00:05]} 50. Ke4 {[%clk 0:00:23.5]} 50... Bf7 {[%clk
0:00:04.9]} 51. a3 {[%clk 0:00:16.7]} 51... Bb2 {[%clk 0:00:05.1]} 52. Nd6
{[%clk 0:00:16.8]} 52... Bxa3 {[%clk 0:00:04.1]} 53. Nxf7 {[%clk 0:00:16.6]}
53... Kxf7 {[%clk 0:00:05]} 54. Kd5 {[%clk 0:00:17.5]} 54... Kg6 {[%clk
0:00:04.1]} 55. Ne4 {[%clk 0:00:17.6]} 55... Kf7 {[%clk 0:00:02.2]} 56. Kc6
{[%clk 0:00:17.7]} 56... Bc1 {[%clk 0:00:01.9]} 57. Nxf6 {[%clk 0:00:16.2]}
57... Ke6 {[%clk 0:00:02.8]} 58. Nd5 {[%clk 0:00:15.6]} 58... Ke5 {[%clk
0:00:02.3]} 59. Nb4 {[%clk 0:00:14.4]} 59... Kf4 {[%clk 0:00:02.6]} 60. Nd3+
{[%clk 0:00:14]} 60... Kxg4 {[%clk 0:00:03.1]} 61. Nxc1 {[%clk 0:00:14.9]} 61...
b5 {[%clk 0:00:04]} 62. Nd3 {[%clk 0:00:14.7]} 62... b4 {[%clk 0:00:04.9]} 63.
Nb2 {[%clk 0:00:15]} 63... b3 {[%clk 0:00:05.8]} 64. Kb5 {[%clk 0:00:15.9]}
64... Kg3 {[%clk 0:00:05.9]} 65. Kc4 {[%clk 0:00:16.8]} 65... Kg2 {[%clk
0:00:06.8]} 66. Kc3 {[%clk 0:00:17.7]} 66... Kh1 {[%clk 0:00:07.7]} 67. Kd2
{[%clk 0:00:18.2]} 67... Kg2 {[%clk 0:00:08.6]} 68. Kc1 {[%clk 0:00:19.1]} 68...
Kg3 {[%clk 0:00:09.5]} 69. Kb1 {[%clk 0:00:20]} 69... Kg4 {[%clk 0:00:10.4]} 70.
Ka1 {[%clk 0:00:20.9]} 70... Kg5 {[%clk 0:00:11.3]} 71. Kb1 {[%clk 0:00:21.8]}
71... Kg6 {[%clk 0:00:12.2]} 72. Ka1 {[%clk 0:00:22.7]} 72... Kg7 {[%clk
0:00:13.1]} 73. Kb1 {[%clk 0:00:23.6]} 73... Kg8 {[%clk 0:00:14]} 74. Ka1 {[%clk
0:00:24.5]} 74... Kh8 {[%clk 0:00:14.9]} 75. Kb1 {[%clk 0:00:25.4]} 75... Kh7
{[%clk 0:00:15.8]} 76. Ka1 {[%clk 0:00:26.3]} 76... Kh6 {[%clk 0:00:16.7]} 77.
Kb1 {[%clk 0:00:27.2]} 77... Kh5 {[%clk 0:00:17.6]} 78. Ka1 {[%clk 0:00:28.1]}
78... Kh4 {[%clk 0:00:18.5]} 79. Kb1 {[%clk 0:00:29]} 79... Kh3 {[%clk
0:00:19.4]} 80. Ka1 {[%clk 0:00:29.9]} 80... Kh2 {[%clk 0:00:20.3]} 81. Kb1
{[%clk 0:00:30.8]} 81... Kh1 {[%clk 0:00:21.2]} 82. Ka1 {[%clk 0:00:31.7]} 82...
Kg1 {[%clk 0:00:22.1]} 83. Kb1 {[%clk 0:00:32.6]} 83... Kh1 {[%clk 0:00:23]} 84.
Ka1 {[%clk 0:00:33.5]} 84... Kg1 {[%clk 0:00:23.9]} 85. Kb1 {[%clk 0:00:34.4]}
85... Kh1 {[%clk 0:00:24.8]} 1/2-1/2